[Event "Croatian 1A League 2022"]
[Site "Porec"]
[Date "2022.10.01"]
[Round "8.28"]
[White "Petkov, Vladimir"]
[Black "Plenca, Julijan"]
[Result "1/2-1/2"]
[ECO "D43"]
[WhiteElo "2451"]
[BlackElo "2447"]
[Annotator "TA"]
[PlyCount "137"]
[EventDate "2022.09.24"]
[EventType "team-tourn"]
[EventCountry "CRO"]
[SourceTitle "playchess.com"]
[Source "ChessBase"]
[SourceQuality "1"]
[TimeControl "40/5400+30:1800+30"]

{[%evp 9,137,0,0,0,8,14,8,6,27,34,29,2,18,34,46,31,45,40,21,39,45,-39,-55,-101,-48,-47,-52,-75,-24,-104,-106,-102,-87,-85,-102,-105,-59,-111,0,-7,33,7,11,0,12,4,5,8,33,0,0,-31,0,-67,-72,-74,-78,-149,-150,-146,-68,-68,-68,-68,-68,-68,-68,-84,-89,-113,-95,-131,-118,-109,-104,-98,-112,-115,-96,-91,-100,-95,-102,-112,-113,-117,-109,-116,-117,-98,-80,-90,-81,-129,-103,-143,-29,-36,-34,-53,-8,-36,-27,-39,-26,-75,-8,-77,0,-85,-27,-27,-30,-664,-8,-8,0,0,0,0,0,0,0,0,0,0,0,0,0,0]} 1. d4 {[%emt 0:04:41]} d5 {[%emt 0:00:05]} 2. c4 {[%emt 0:00:26]} e6 {[%emt 0:00:05]} 3. Nf3 {[%emt 0:00:19]} Nf6 {[%emt 0:00:07]} 4. Nc3 {[%emt 0:00:35]} c6 {[%emt 0:00:06]} 5. Qd3 {[%emt 0:01:28]} Nbd7 {[%emt 0:03:24]} 6. g3 {[%emt 0:02:47] D43: Semi-Slav: 5 Bg5 h6.} b6 {[%emt 0:03:36]} 7. Bg2 {[%emt 0:01:10]} Ba6 {[%emt 0:00:48]} 8. b3 {[%emt 0:00:28]} Bb4 {[%emt 0:00:22][%cal Bf8b4,Bb4d6,Bd6e5][%mdl 32]} 9. O-O {[%emt 0:01:05]} O-O {[%emt 0:01:38]} 10. a3 {[%emt 0:02:20] [#]} Bd6 $146 {[%emt 0:03:13]} ({Predecessor:} 10... Bxc3 11. Qxc3 Rc8 12. Rd1 dxc4 13. bxc4 c5 14. Bb2 cxd4 15. Rxd4 Qe7 16. Rad1 e5 {½-½ (36) Zontakh,A (2568)-Sitnikov,D (2470) Olginka 2011}) 11. Rd1 {[%emt 0:13:08]} Qe7 {[%emt 0:02:57]} 12. e4 {[%emt 0:16:12]} dxc4 {[%emt 0:10:00]} 13. bxc4 {[%emt 0:09:30]} e5 {[%emt 0:01:46]} 14. Nh4 {[%emt 0:00:52] Strongly threatening Nf5.} g6 {[%emt 0:03:17] Against Nf5} 15. dxe5 {[%emt 0:10:50]} (15. d5 $1 $14 Rfc8 16. Bh3) 15... Bxe5 $15 {[%emt 0:00:36] aiming for ...Nc5.} 16. Bb2 {[%emt 0:13:22]} (16. Nf3 $15) 16... Rad8 {[%emt 0:03:31]} (16... Nc5 $1 $17 {[%cal Rc5d3]} 17. Qe2 Qe6) 17. Nf3 {[%emt 0:02:10]} Rfe8 {[%emt 0:02:07]} 18. Qe2 {[%emt 0:04:25]} Qe6 {[%emt 0:01:26]} (18... Bxc3 $17 19. Bxc3 Nxe4) 19. Nd4 {[%emt 0:01:46]} (19. Qd2 $1 $11 {remains equal.}) 19... Bxd4 $17 {[%emt 0:00:58]} (19... Qxc4 20. Qxc4 Bxc4 21. Nxc6 $14) (19... Bxc4 20. Nxe6 Bxe2 21. Nxd8 Bxd1 22. Rxd1 $14) 20. Rxd4 {[%emt 0:00:05]} Ne5 $1 {[%emt 0:00:42][%csl LRc4,LRd4]} 21. Rxd8 {[%emt 0:05:34]} Rxd8 {[%emt 0:00:05]} 22. Nd5 {[%emt 0:00:37] Nxf6+ is the strong threat.} Ne8 {[%emt 0:01:02] Pair of Knights!} (22... cxd5 23. exd5 Bxc4 24. dxe6 $14) ({Black should play} 22... Bxc4 $17 23. Qe1 cxd5 24. exd5 Bxd5 $1 25. Qxe5 Qxe5 26. Bxe5 Nd7) 23. Rc1 {[%emt 0:02:22]} f6 {[%emt 0:08:41]} (23... cxd5 24. exd5 Qe7 25. Qxe5 Qxe5 26. Bxe5 $16) (23... Nxc4 $17 24. Nf4 Qe7) 24. Ne3 $11 {[%emt 0:00:21]} Rd7 {[%emt 0:03:40]} 25. Qc2 {[%emt 0:01:33]} Nd3 {[%emt 0:02:34]} 26. Rd1 {[%emt 0:00:28]} Nxb2 {[%emt 0:00:13]} 27. Rxd7 {[%emt 0:00:03]} Qxd7 {[%emt 0:00:05]} 28. Qxb2 {[%emt 0:00:04]} Qd6 {[%emt 0:01:16] Inhibits e5.} (28... c5 {is more complex.} 29. e5 Qd4 30. Qb3 Qa1+) 29. h4 {[%emt 0:00:42]} (29. Qb3 $5 {[%cal Rc4c5]} Qc7 30. c5+ Kg7 31. Qc2 $14) 29... Bc8 {[%emt 0:01:26]} 30. Kh2 {[%emt 0:00:28]} (30. Qb3 $5 {[%cal Rc4c5]}) 30... Be6 {[%emt 0:00:29]} 31. f4 {[%emt 0:00:18]} (31. Qb3 $11) 31... Qd3 $15 {[%emt 0:01:08][%csl LRc4,LRe3]} 32. Qc1 {[%emt 0:00:30]} Qd4 $1 {[%emt 0:02:51]} 33. e5 {[%emt 0:00:38] Against Nd6} ({White should try} 33. f5 Bc8 34. c5) 33... fxe5 $17 {[%emt 0:00:24]} 34. fxe5 {[%emt 0:00:54]} Qxe5 {[%emt 0:00:20]} (34... c5 $1 $17 35. Nd5 Qxe5) 35. Bxc6 $15 {[%emt 0:00:17]} Nf6 {[%emt 0:00:09][%cal Oe5e3] And now ...Qxe3! would win.} 36. Bf3 {[%emt 0:02:33][%cal Oe3d5]} Qd4 {[%emt 0:01:34] Against Nd5} 37. Kg2 {[%emt 0:02:06]} Kg7 {[%emt 0:00:32]} 38. Kf2 {[%emt 0:00:36]} Nd7 {[%emt 0:00:14]} 39. Be2 {[%emt 0:01:26]} Ne5 {[%emt 0:00:34]} 40. Qh1 {[%emt 0:00:30]} Bxc4 {[%emt 0:04:57]} ({Much weaker is} 40... Ng4+ $6 41. Bxg4 Bxg4 42. Qb7+ Kh6 43. Qe7 (43. Qd5 Qb2+ 44. Kg1 Qc1+ 45. Kf2 Qb2+ 46. Kg1 Qc1+ 47. Kf2 Qb2+ $11) 43... Qd2+ 44. Kg1 Qe1+ 45. Kg2 Qe2+ 46. Kg1 Qe1+ 47. Kg2 Qe2+ 48. Kg1 Qe1+ $11) 41. Qb7+ {[%emt 0:30:29]} Kf6 {[%emt 0:08:06]} 42. Bxc4 {[%emt 0:00:00]} Nxc4 $17 {[%emt 0:02:30][%mdl 4096] Endgame KQN-KQN} 43. Qc6+ {[%emt 0:00:00]} Nd6 {[%emt 0:00:03]} 44. Kf3 {[%emt 0:00:00]} Ke6 {[%emt 0:00:40]} 45. Qa8 {[%emt 0:00:00]} Qg7 {[%emt 0:02:10]} 46. Qd5+ {[%emt 0:00:00]} Kd7 {[%emt 0:05:23]} 47. Qa8 {[%emt 0:00:00]} Qf7+ {[%emt 0:00:51]} 48. Ke2 {[%emt 0:00:00]} Qa2+ {[%emt 0:00:18]} 49. Kf3 {[%emt 0:00:00]} Qxa3 {[%emt 0:01:28]} 50. Qg8 {[%emt 0:00:00]} Nf5 {[%emt 0:05:48]} 51. Qxh7+ {[%emt 0:00:00]} Qe7 {[%emt 0:00:52]} 52. Qxe7+ {[%emt 0:00:00]} Nxe7 {[%emt 0:00:23] KN-KN} (52... Kxe7 $17 53. Ng2 a5) 53. Ke4 $11 {[%emt 0:00:00]} Ke6 {[%emt 0:01:29] Threatens to win with ...Nf5.} 54. g4 {[%emt 0:00:00] Prevents Nf5.} Ng8 {[%emt 0:01:35]} 55. Nc2 {[%emt 0:00:00]} Nf6+ {[%emt 0:00:52]} 56. Kf4 {[%emt 0:00:00]} a5 {[%emt 0:00:26]} 57. Na3 {[%emt 0:00:00]} (57. Nd4+ $11 {feels stronger.} Kf7 58. Nb5) 57... Nd5+ {[%emt 0:03:02]} (57... Nh7 $1 $17 58. Ke4 Nf6+ 59. Kf4 Nd5+ 60. Kg5 Kf7) 58. Ke4 {[%emt 0:00:00]} (58. Kg5 $11 {keeps the balance.}) 58... Nf6+ {[%emt 0:00:54]} (58... a4 $5 {[%cal Rd5f6]} 59. Nc2 Nf6+ 60. Kf4 Nd5+ 61. Ke4 Nf6+ 62. Kf4 Nh7 $17) 59. Kf4 {[%emt 0:00:00]} a4 {[%emt 0:00:15]} (59... Nh7 $1 $17 60. Ke4 Nf6+ 61. Kf4) 60. Kg5 {[%emt 0:00:00]} Kf7 {[%emt 0:00:29]} 61. h5 $2 {[%emt 0:00:10][%mdl 8192] [#]} (61. Kf4 $11) 61... gxh5 $2 {[%emt 0:00:12]} (61... Nxh5 $1 $19 {[%mdl 512]} 62. Nb5 (62. gxh5 $2 gxh5 63. Kxh5 Ke6 $19) (62. Nc2 Nf6) 62... Nf6) 62. gxh5 {[%emt 0:00:10] The position is equal.} Nd5 {[%emt 0:02:51]} 63. Kf5 {[%emt 0:00:19]} Nc7 {[%emt 0:00:18]} 64. Ke5 {[%emt 0:00:29]} b5 {[%emt 0:00:15][%cal Bb6b5,Bb5b4,Bb4b3][%mdl 32]} 65. Nc2 {[%emt 0:00:48]} Kg7 {[%emt 0:00:26]} 66. Kd6 {[%emt 0:01:06]} Na6 {[%emt 0:00:16]} 67. Kc6 {[%emt 0:00:07]} b4 {[%emt 0:00:17]} 68. Kb5 {[%emt 0:00:13][%csl LRa4,LRa6,LRb4]} b3 {[%emt 0:00:12]} 69. Na3 {[%emt 0:00:08] Weighted Error Value: White=0.17 (very precise) /Black=0.17 (very precise)} 1/2-1/2

[Event "Croatian 1A League 2022"]
[Site "Porec"]
[Date "2022.10.01"]
[Round "8.29"]
[White "Plenca, Jadranko"]
[Black "Zelcic, Robert"]
[Result "1-0"]
[ECO "B11"]
[WhiteElo "2412"]
[BlackElo "2495"]
[Annotator "TA"]
[PlyCount "89"]
[EventDate "2022.09.24"]
[EventType "team-tourn"]
[EventCountry "CRO"]
[SourceTitle "playchess.com"]
[Source "ChessBase"]
[SourceQuality "1"]
[TimeControl "40/5400+30:1800+30"]

{[%evp 10,89,29,16,13,18,24,18,29,15,25,19,25,18,25,26,34,29,31,22,25,21,25,-20,25,23,25,22,29,30,87,77,80,33,46,46,58,0,0,0,0,0,79,85,82,91,92,66,106,95,101,79,226,230,221,194,192,151,226,218,633,639,772,757,703,573,2212,2116,1555,1312,1399,1269,29979,29980,29980,29980,29980,29981,29961,914,29987,29988]} 1. e4 {[%emt 0:00:04]} c6 {[%emt 0:00:06]} 2. Nc3 {[%emt 0:00:27]} d5 {[%emt 0:00:26]} 3. Nf3 {[%emt 0:00:08]} Bg4 {[%emt 0:00:06]} 4. h3 {[%emt 0:00:06]} Bxf3 {[%emt 0:00:03]} 5. Qxf3 {[%emt 0:00:06]} e6 {[%emt 0:00:05]} 6. g3 {[%emt 0:00:56]} Bc5 {[%emt 0:01:31] B11: Caro-Kann: Two Knights Variation.} 7. Bg2 {[%emt 0:01:39]} Ne7 {[%emt 0:00:08]} 8. O-O {[%emt 0:02:16]} O-O {[%emt 0:00:57] [#] The position is equal.} 9. Na4 $146 {[%emt 0:02:56]} ({Predecessor:} 9. Ne2 e5 10. Qb3 Na6 11. exd5 Nxd5 12. Nc3 Nxc3 13. bxc3 Rb8 14. Qc4 Qa5 15. a4 {½-½ (90) Svane,R (2613)-Bluebaum,M (2670) Magdeburg 2021}) 9... Bd6 {[%emt 0:03:46]} 10. d4 {[%emt 0:01:38]} Nd7 {[%emt 0:01:32]} 11. Nc3 {[%emt 0:09:39]} Bc7 {[%emt 0:01:30]} 12. Re1 {[%emt 0:05:41]} Bb6 {[%emt 0:02:00]} 13. exd5 {[%emt 0:14:40]} cxd5 {[%emt 0:02:39]} 14. Bg5 {[%emt 0:03:32][%cal Rc3d5] And now Nxd5! would win.} Re8 {[%emt 0:08:32]} 15. Nb5 {[%emt 0:05:11]} Nf8 {[%emt 0:00:49]} 16. c4 {[%emt 0:17:23]} a6 {[%emt 0:05:23]} 17. Nc3 {[%emt 0:01:11]} dxc4 {[%emt 0:16:32]} 18. Rad1 {[%emt 0:03:58] next d5 is good for White.} f6 {[%emt 0:00:32]} 19. Be3 {[%emt 0:02:11]} Nf5 {[%emt 0:11:11]} (19... Ba5 $11) 20. Qxb7 $16 {[%emt 0:03:26]} Nxe3 {[%emt 0:01:13]} 21. fxe3 {[%emt 0:03:12]} (21. Rxe3 $16 Rc8 22. Qxa6) 21... Ra7 {[%emt 0:01:22]} 22. Qc6 {[%emt 0:05:05]} Qb8 {[%emt 0:02:07]} 23. g4 {[%emt 0:06:06]} (23. Re2 $14) 23... Rc8 $11 {[%emt 0:06:44]} 24. Qe4 {[%emt 0:00:08]} Qd6 {[%emt 0:06:38]} 25. d5 {[%emt 0:02:38] aiming for dxe6.} e5 {[%emt 0:08:30]} (25... Re7 $11 {keeps the balance.}) 26. Qf5 $16 {[%emt 0:01:09]} Rb8 {[%emt 0:09:12]} 27. Ne4 {[%emt 0:00:51][%cal Bc3e4,Be4g3,Bg3f5][%mdl 32]} Qd7 {[%emt 0:00:01]} 28. Qf1 {[%emt 0:01:48] White is more active.} Rc7 {[%emt 0:01:09]} 29. Kh1 {[%emt 0:02:58]} Ba7 {[%emt 0:03:25]} 30. Re2 {[%emt 0:01:07][%cal Be1e2,Be2c2,Bc2c8][%mdl 32]} Ng6 {[%emt 0:00:04] This costs Black the game.} (30... a5 $16) 31. d6 $18 {[%emt 0:01:50]} Rcb7 {[%emt 0:03:49]} 32. Ng3 {[%emt 0:00:46] Threatens to win with Bd5+.} Rb4 {[%emt 0:01:01]} 33. Nf5 {[%emt 0:00:24]} Kh8 {[%emt 0:00:08]} (33... e4 $16 {was worth a try.} 34. Bxe4 Kh8) 34. Rc2 {[%emt 0:00:18]} Qb5 $2 {[%emt 0:03:38]} (34... e4 35. Rxc4 (35. Bxe4 Ne5 $18) 35... Rxc4 36. Qxc4 Ne5 37. Qxe4 (37. Qxa6 Bb6 $18) 37... a5) 35. d7 {[%emt 0:00:58]} Bb6 {[%emt 0:00:31]} 36. Rd5 {[%emt 0:01:01]} Qa4 {[%emt 0:00:16]} 37. b3 {[%emt 0:00:10]} cxb3 {[%emt 0:00:03]} 38. Rc8+ {[%emt 0:00:05]} Bd8 {[%emt 0:00:00]} 39. axb3 {[%emt 0:00:32]} Rxb3 {[%emt 0:00:41] [#]} 40. Nh6 $1 {[%emt 0:00:00][%mdl 512] Nf7+ is the strong threat.} Rb1 {[%emt 0:00:00] [#]} (40... Nf8 41. Rxd8) 41. Qxb1 $1 {[%emt 0:11:00]} Rxb1+ {[%emt 0:05:15]} 42. Kh2 {[%emt 0:00:04]} gxh6 {[%emt 0:02:10]} 43. Rxd8+ {[%emt 0:00:05]} Kg7 {[%emt 0:00:08] [#]} 44. Rc8 {[%emt 0:00:49]} (44. Rg8+ $142 $3 {[%mdl 512]} Kxg8 45. d8=Q+ Nf8 46. Rc5 Rb2 47. Qd5+ Kg7 48. Rc7+ (48. Rc8 Qd7 $11) 48... Qd7 49. Rxd7+ Nxd7 50. Qxd7+ Kf8 51. Kg3) 44... Rb2 {[%emt 0:00:57]} 45. d8=Q {[%emt 0:00:34] Weighted Error Value: White=0.11 (very precise) /Black=0.62} 1-0

[Event "Croatian 1A League 2022"]
[Site "Porec"]
[Date "2022.10.01"]
[Round "8.30"]
[White "Jankovic, Alojzije"]
[Black "Bobanac, Miro"]
[Result "1-0"]
[ECO "D93"]
[WhiteElo "2548"]
[BlackElo "2245"]
[Annotator "TA"]
[PlyCount "69"]
[EventDate "2022.09.24"]
[EventType "team-tourn"]
[EventCountry "CRO"]
[SourceTitle "playchess.com"]
[Source "ChessBase"]
[SourceQuality "1"]
[TimeControl "40/5400+30:1800+30"]

{[%evp 17,69,52,47,32,56,60,45,56,46,52,59,52,85,76,122,132,127,127,116,113,110,91,94,39,35,30,233,221,288,290,290,290,281,255,341,241,436,433,430,416,422,423,456,426,476,463,428,384,452,389,678,552,646,631]} 1. d4 {[%emt 0:00:27]} d5 {[%emt 0:00:10]} 2. Nf3 {[%emt 0:00:21]} Nf6 {[%emt 0:00:27]} 3. c4 {[%emt 0:00:10]} c6 {[%emt 0:00:38]} 4. Nc3 {[%emt 0:00:20]} g6 {[%emt 0:01:16]} 5. Bf4 {[%emt 0:00:20]} Bg7 {[%emt 0:00:41]} 6. e3 {[%emt 0:00:27]} O-O {[%emt 0:00:37]} 7. h3 {[%emt 0:00:07]} Nbd7 {[%emt 0:02:20]} 8. cxd5 {[%emt 0:06:37]} Nxd5 {[%emt 0:03:22]} 9. Nxd5 {[%emt 0:02:36]} cxd5 {[%emt 0:00:12]} 10. Be2 {[%emt 0:01:43] D93: Grünfeld: 4 Nf3 Bg7 5 Bf4 0-0 6 e3.} Qa5+ {[%emt 0:03:53]} 11. Qd2 {[%emt 0:04:45]} Qxd2+ {[%emt 0:00:39]} 12. Kxd2 {[%emt 0:00:04] White is slightly better.} f6 {[%emt 0:12:37]} 13. Rhc1 {[%emt 0:14:47]} e5 {[%emt 0:00:39]} 14. Bg3 {[%emt 0:02:10]} Re8 {[%emt 0:12:33]} 15. Bb5 {[%emt 0:02:35][%cal Oc1c8] [#]} a6 $146 {[%emt 0:04:27] [#]} (15... Rd8 $142) ({Predecessor:} 15... Re6 16. Rxc8+ {1-0 (16) Vodicka,M (1811)-Couspeyre,T (1274) LSS email 2011}) 16. Rxc8 $1 $16 {[%emt 0:08:23][%mdl 512] White has more active pieces. The black rooks are badly placed.} axb5 {[%emt 0:07:19]} 17. Rc7 {[%emt 0:00:27]} Nb6 {[%emt 0:01:55][%cal Bd7b6,Bb6c4,Bc4b2][%mdl 32]} 18. Rxb7 {[%emt 0:08:23]} Nc4+ {[%emt 0:07:50]} 19. Ke2 {[%emt 0:02:21]} Nxb2 {[%emt 0:16:51]} 20. Rxb5 {[%emt 0:08:58]} ({Better is} 20. dxe5 $16 fxe5 {[#]} 21. Rxg7+ $1 (21. Rxb5 Na4 $14) 21... Kxg7 22. Bxe5+ Rxe5 23. Nxe5) 20... Na4 $14 {[%emt 0:00:14] Strongly threatening ...Nc3+.} 21. Rc1 {[%emt 0:06:16] Inhibits Nc3+.} Rec8 $2 {[%emt 0:03:34] [#] Black cannot hold the game after this.} (21... Rac8 $1 $11 22. Rxc8 Rxc8) 22. Ra5 $3 $18 {[%emt 0:00:50][%mdl 512]} Nb6 {[%emt 0:01:05]} (22... Rxa5 23. Rxc8+) 23. Rxc8+ {[%emt 0:02:06]} Rxc8 {[%emt 0:00:11]} 24. dxe5 {[%emt 0:00:25]} fxe5 {[%emt 0:01:56]} 25. Nxe5 {[%emt 0:04:06]} Rc2+ {[%emt 0:08:52]} 26. Kf3 {[%emt 0:00:27]} Rd2 $2 {[%emt 0:03:18]} (26... Bxe5 27. Bxe5 Nc4 28. Rxd5 Rxa2) 27. Ra6 {[%emt 0:02:06]} Bxe5 {[%emt 0:00:44]} 28. Bxe5 {[%emt 0:00:14][%mdl 4096] Endgame KRB-KRN} Nc4 {[%emt 0:00:46]} 29. Bd4 {[%emt 0:01:06]} Rc2 {[%emt 0:00:09]} 30. a4 {[%emt 0:02:48]} Ra2 {[%emt 0:00:39]} 31. Ra7 {[%emt 0:01:09]} Kf8 {[%emt 0:01:24]} 32. Kg3 {[%emt 0:06:41]} h5 {[%emt 0:00:15]} 33. h4 {[%emt 0:00:44]} Nd2 $2 {[%emt 0:00:19]} (33... Ke8 34. Ra6 Kd7 35. Rxg6 Nd6) 34. f3 {[%emt 0:00:10]} Nb3 {[%emt 0:00:57]} 35. Bb6 {[%emt 0:00:54] Weighted Error Value: White=0.20 (precise) /Black=0.51} 1-0

[Event "Croatian 1A League 2022"]
[Site "Porec"]
[Date "2022.10.02"]
[Round "9.1"]
[White "Kozul, Zdenko"]
[Black "Saric, Ivan"]
[Result "1/2-1/2"]
[ECO "D77"]
[WhiteElo "2549"]
[BlackElo "2668"]
[Annotator "TA"]
[PlyCount "23"]
[EventDate "2022.09.24"]
[EventType "team-tourn"]
[EventCountry "CRO"]
[SourceTitle "playchess.com"]
[Source "ChessBase"]
[SourceQuality "1"]
[TimeControl "40/5400+30:1800+30"]

{[%evp 18,23,34,25,29,21,16,25]} 1. Nf3 {[%emt 0:00:02]} d5 {[%emt 0:00:05]} 2. g3 {[%emt 0:00:05]} Nf6 {[%emt 0:00:23]} 3. Bg2 {[%emt 0:00:06]} g6 {[%emt 0:00:09]} 4. d4 {[%emt 0:00:05]} Bg7 {[%emt 0:00:03]} 5. O-O {[%emt 0:00:06]} O-O {[%emt 0:00:05]} 6. c4 {[%emt 0:00:13]} dxc4 {[%emt 0:00:26]} 7. Na3 {[%emt 0:00:07][%cal Bb1a3,Ba3c4,Bc4e5][%mdl 32]} Nc6 {[%emt 0:00:38]} 8. Nxc4 {[%emt 0:00:15]} Be6 {[%emt 0:00:11]} 9. Nce5 {[%emt 0:00:33]} Bd5 {[%emt 0:01:38]} 10. Bf4 {[%emt 0:01:09]} e6 {[%emt 0:02:12] D77: Fianchetto Grünfeld: 6 0-0: Replies other than 6...c6.} 11. Nxc6 {[%emt 0:00:30]} Bxc6 {[%emt 0:00:07] [#]} 12. Rc1 $146 {[%emt 0:00:03] A rather calm draw.} ({Predecessor:} 12. Qc1 Re8 13. Be5 Rc8 14. b4 Qd7 15. Qb2 Bd5 16. Rfe1 Qe7 17. b5 c5 18. dxc5 Rxc5 {½-½ (42) Levitt,M (2275)-Steel,S (2235) South Africa 2005}) 1/2-1/2

[Event "Croatian 1A League 2022"]
[Site "Porec"]
[Date "2022.10.02"]
[Round "9.2"]
[White "Banusz, Tamas"]
[Black "Stevic, Hrvoje"]
[Result "1/2-1/2"]
[ECO "A07"]
[WhiteElo "2622"]
[BlackElo "2565"]
[Annotator "TA"]
[PlyCount "116"]
[EventDate "2022.09.24"]
[EventType "team-tourn"]
[EventCountry "CRO"]
[SourceTitle "playchess.com"]
[Source "ChessBase"]
[SourceQuality "1"]
[TimeControl "40/5400+30:1800+30"]

{[%evp 9,116,11,25,6,19,6,10,0,0,0,0,0,0,0,14,4,7,0,-2,0,2,0,0,0,-7,-4,0,0,-4,-2,18,11,9,6,9,12,24,0,10,13,38,32,17,8,10,3,10,10,14,0,2,10,17,17,19,21,24,14,25,21,21,0,0,0,0,0,0,0,0,0,0,0,0,0,0,0,0,0,0,0,189,0,0,0,41,0,281,67,74,62,6608,6079,5065,141,134,5,8,0,0,0,0,0,0,0,0,0,0,0,0]} 1. Nf3 {[%emt 0:00:03]} d5 {[%emt 0:00:23]} 2. g3 {[%emt 0:00:05]} Bg4 {[%emt 0:00:21]} 3. Bg2 {[%emt 0:00:04]} c6 {[%emt 0:00:10]} 4. h3 {[%emt 0:00:22]} Bh5 {[%emt 0:00:07]} 5. c4 {[%emt 0:00:48]} e6 {[%emt 0:00:43]} 6. O-O {[%emt 0:00:34] A07: Réti Opening: New York and Capablanca Systems.} Nf6 {[%emt 0:00:37]} 7. Qb3 {[%emt 0:00:14]} Qb6 {[%emt 0:00:34]} 8. d3 {[%emt 0:00:08]} Nbd7 {[%emt 0:01:59]} 9. Qc2 {[%emt 0:00:29]} dxc4 {[%emt 0:01:26]} 10. Qxc4 {[%emt 0:00:07]} Bxf3 {[%emt 0:00:19]} 11. Bxf3 {[%emt 0:00:04]} Ne5 {[%emt 0:00:05]} 12. Qf4 {[%emt 0:00:04]} Nxf3+ {[%emt 0:00:12]} 13. Qxf3 {[%emt 0:00:04]} Be7 {[%emt 0:00:52]} 14. Nd2 {[%emt 0:00:06][%cal Bb1d2,Bd2c4,Bc4e3][%mdl 32]} O-O {[%emt 0:02:24]} 15. Nc4 {[%emt 0:00:23] [#]} Qa6 $146 {[%emt 0:45:42]} ({Predecessor:} 15... Qd8 16. b4 Qd5 17. e4 Qd8 18. Rb1 Rc8 19. Bd2 b5 20. Na5 Qd7 21. Rfd1 e5 {1-0 (54) Vachier Lagrave,M (2763)-So,W (2778) chess24.com INT 2021}) 16. Bd2 {[%emt 0:09:31]} Nd5 {[%emt 0:07:30]} 17. a3 {[%emt 0:06:49]} Bf6 {[%emt 0:07:35]} 18. Rab1 {[%emt 0:02:29]} Rfd8 {[%emt 0:01:59]} 19. Rfc1 {[%emt 0:01:45][%cal Bf1c1,Bc1c4,Bc4h4][%mdl 32]} Nb6 {[%emt 0:03:54]} 20. Ne3 {[%emt 0:08:52]} Bd4 {[%emt 0:06:08]} 21. Kg2 {[%emt 0:07:11]} Nd5 {[%emt 0:03:47]} 22. Nc4 {[%emt 0:04:27]} Nb6 {[%emt 0:00:07]} 23. Ne3 {[%emt 0:03:47]} Nd5 {[%emt 0:00:05]} 24. Rc4 {[%emt 0:02:27]} Nxe3+ {[%emt 0:00:33]} 25. fxe3 {[%emt 0:01:11]} Be5 {[%emt 0:02:11]} 26. Rh4 {[%emt 0:12:08]} g6 $1 {[%emt 0:01:06]} 27. Bc3 {[%emt 0:02:44]} (27. Rf1 f5 $15) 27... Bxc3 {[%emt 0:01:46]} 28. bxc3 {[%emt 0:00:02][%cal Oh4h7]} Rd7 {[%emt 0:00:04]} 29. Rhb4 {[%emt 0:07:52]} Re8 {[%emt 0:02:02]} 30. h4 {[%emt 0:10:15][%cal Bh3h4,Bh4h5][%mdl 32]} Ree7 {[%emt 0:01:57]} 31. h5 {[%emt 0:01:41]} Qa5 {[%emt 0:00:15]} 32. Rh1 {[%emt 0:02:53]} Qe5 {[%emt 0:00:36]} 33. Rf4 {[%emt 0:03:49]} f5 {[%emt 0:01:31]} 34. hxg6 {[%emt 0:02:47]} hxg6 {[%emt 0:00:01]} 35. d4 {[%emt 0:02:58]} Qf6 {[%emt 0:01:29]} 36. Rfh4 {[%emt 0:00:03]} Rh7 {[%emt 0:00:53]} 37. Rxh7 {[%emt 0:00:05]} Rxh7 {[%emt 0:00:04]} 38. Rxh7 {[%emt 0:00:03]} Kxh7 $11 {[%emt 0:00:06][%mdl 4096] Endgame KQ-KQ} 39. Qf4 {[%emt 0:00:28]} Qe7 {[%emt 0:00:19]} 40. a4 {[%emt 0:00:00]} c5 {[%emt 0:00:00]} 41. Qe5 {[%emt 0:05:08] And now d5 would win.} cxd4 {[%emt 0:11:52]} 42. exd4 {[%emt 0:00:16] Threatens to win with d5.} Qd7 {[%emt 0:00:20] Prevents d5.} 43. c4 {[%emt 0:04:18] Inhibits Qd5+.} b6 $1 {[%emt 0:06:22]} 44. Kf2 {[%emt 0:03:43]} a5 $2 {[%emt 0:15:42]} (44... Kg8 $11 {and Black stays safe.}) 45. Ke3 $2 {[%emt 0:12:44]} (45. d5 $1 $18 {[%cal Rd5e6]}) 45... Qxa4 {[%emt 0:01:48]} 46. Qxe6 {[%emt 0:00:16]} Qd1 {[%emt 0:02:05]} 47. d5 {[%emt 0:03:15]} a4 $2 {[%emt 0:00:29][%mdl 8192]} (47... Qc1+ $11 {and Black is okay.} 48. Kf2 Qxc4) 48. d6 $2 {[%emt 0:02:03]} (48. Qf7+ $18 Kh6 49. Qf8+ Kh7 50. Qe7+ Kh6 51. Qe5 (51. Qf8+ Kh7 $16)) 48... a3 $14 {[%emt 0:00:38] [#]} 49. d7 $1 {[%emt 0:01:41] Intending Qe7+ and mate.} a2 $2 {[%emt 0:00:37][%mdl 8192]} (49... Qg1+ $14 50. Kd2 (50. Kf3 Qh1+ 51. Kf2 Qh2+ 52. Kf3 Qh1+ 53. Kf2 Qh2+ 54. Ke3 Qg1+ 55. Kd2 Qd4+ 56. Kc2 Qb2+ 57. Kd3 Qb1+ 58. Kd2 Qb2+ 59. Kd3 Qb3+ 60. Kd2 Qb2+ 61. Ke3 Qc3+ 62. Kf2 Qd4+ 63. Kg2 a2 $16) 50... Qd4+ 51. Kc2 Qb2+ 52. Kd3 Qb3+ 53. Kd2 Qb2+ 54. Ke3 Qc3+ 55. Kf2 Qd4+ 56. Kg2 a2 57. Qe7+ Kh6) 50. Qe7+ {[%emt 0:00:39]} Kh6 {[%emt 0:00:02] [#]} 51. d8=Q $2 {[%emt 0:01:13]} (51. Qh4+ $1 $18 {and the rest is easy.} Kg7 52. d8=Q (52. Qe7+ Kh6 $16) 52... Qxd8 53. Qxd8) 51... f4+ $16 {[%emt 0:03:18]} (51... Qg1+ 52. Kd2) 52. gxf4 {[%emt 0:03:06]} (52. Kf2 $6 fxg3+ 53. Kf3 (53. Kg2 Qxd8 54. Qxd8 a1=Q $11) 53... Qxd8 54. Qxd8 a1=Q $11) (52. Kf3 $16 {[%cal Rd8h8]} Qxd8 53. Qxd8) 52... Qc1+ $1 $11 {[%emt 0:00:16] The position is equal.} (52... Qg1+ 53. Kd2 (53. Kf3 Qf1+ 54. Ke3 Qc1+ 55. Kf3 Qf1+ 56. Ke3 Qc1+ 57. Qd2 a1=Q $16) (53. Kf3 Qf1+ 54. Ke3 Qc1+ 55. Qd2 a1=Q $16)) 53. Ke4 {[%emt 0:04:14][%cal Rd8h8]} ({Don't do} 53. Kf3 $6 Qf1+ 54. Ke3 (54. Ke4 Qh1+ 55. Ke3 Qc1+ 56. Kf3 Qf1+ 57. Ke3 Qc1+ $16) 54... Qc1+ 55. Kf3 Qf1+ 56. Ke3 (56. Ke4 Qh1+ 57. Ke3 Qc1+ $14) 56... Qc1+ $14) 53... Qh1+ $1 {[%emt 0:00:17]} 54. Ke5 {[%emt 0:01:20][%cal Rd8h8]} a1=Q+ {[%emt 0:00:07]} 55. Qd4 {[%emt 0:00:52] The board is on fire.} Qxd4+ {[%emt 0:01:15]} 56. Kxd4 {[%emt 0:00:01] e4 is the strong threat.} Qd1+ {[%emt 0:00:06]} 57. Ke3 {[%emt 0:02:07]} Qc1+ {[%emt 0:00:13]} 58. Kf3 {[%emt 0:00:19]} Qf1+ {[%emt 0:00:21] Weighted Error Value: White=0.31/Black=0.16 (very precise)} 1/2-1/2